[Event "1st 4NCL International U2050"]
[Site "Telford"]
[Date "2018.11.04"]
[Round "8"]
[White "Neatherway, A Philip"]
[Black "Di-Vetta, Andrew"]
[Result "0-1"]
[ECO "C48"]
[WhiteElo "1813"]
[BlackElo "1706"]
[Annotator "NA"]
[PlyCount "58"]
[EventDate "2018.10.31"]
[EventType "swiss"]
[EventCountry "GBR"]
[SourceTitle "playchess.com"]
[Source "ChessBase"]
[SourceQuality "1"]
[TimeControl "5400+30"]

1. e4 {[%emt 0:00:00]} e5 {[%emt 0:00:00]} 2. Nf3 {[%emt 0:00:00]} Nc6 {[%emt 0:00:00]} 3. Bb5 {[%emt 0:00:00]} Nf6 {[%emt 0:00:00]} 4. Nc3 {[%emt 0:00:50]} d6 {[%emt 0:00:33]} 5. Bxc6+ {[%emt 0:00:33]} bxc6 {[%emt 0:00:06]} 6. d4 {[%emt 0:00:05]} Bg4 {[%emt 0:01:51]} 7. dxe5 {[%emt 0:03:00]} Bxf3 {[%emt 0:00:18]} 8. Qxf3 {[%emt 0:00:06]} dxe5 {[%emt 0:00:06]} 9. O-O {[%emt 0:00:53]} Bd6 {[%emt 0:06:27]} 10. Rd1 {[%emt 0:01:51]} h6 {[%emt 0:00:31]} 11. b3 {[%emt 0:01:57]} Qe7 {[%emt 0:00:48]} 12. Na4 {[%emt 0:01:47]} O-O {[%emt 0:03:40]} 13. Be3 {[%emt 0:02:38]} Nd7 {[%emt 0:01:29]} 14. Nb2 {[%emt 0:05:07]} Nb6 {[%emt 0:10:42]} 15. Nd3 {[%emt 0:09:44]} a5 {[%emt 0:04:08]} 16. c4 {[%emt 0:04:17]} c5 {[%emt 0:01:56]} 17. Qg4 {[%emt 0:09:25]} Kh8 {[%emt 0:10:09]} 18. Rf1 {[%emt 0:12:13]} Nd7 {[%emt 0:02:57]} 19. Rae1 {[%emt 0:02:40]} Rfe8 {[%emt 0:12:20]} 20. f4 {[%emt 0:15:46]} Nf6 {[%emt 0:09:25]} 21. Qf5 {[%emt 0:05:07]} exf4 {[%emt 0:17:14]} 22. Bxf4 {[%emt 0:01:44]} Bxf4 {[%emt 0:03:01]} 23. Rxf4 {[%emt 0:00:40]} Qd8 {[%emt 0:02:20]} 24. e5 {[%emt 0:05:39]} Ng8 {[%emt 0:00:24]} 25. Nf2 {[%emt 0:06:33]} Qd2 {[%emt 0:01:12]} 26. Rfe4 {[%emt 0:05:24]} Qxa2 {[%emt 0:03:28]} 27. Qxf7 {[%emt 0:02:11]} Rf8 {[%emt 0:00:22]} 28. e6 {[%emt 0:01:38]} Rxf7 {[%emt 0:03:12]} 29. exf7 {[%emt 0:00:06]} Rf8 {[%emt 0:00:41]} 0-1

[Event "1st 4NCL International U2050"]
[Site "Telford"]
[Date "2018.11.04"]
[Round "8"]
[White "Somton, Anita"]
[Black "Gorgun, Aliriza Atif"]
[Result "1/2-1/2"]
[ECO "B06"]
[WhiteElo "1795"]
[BlackElo "1739"]
[Annotator "NA"]
[PlyCount "69"]
[EventDate "2018.10.31"]
[EventType "swiss"]
[EventCountry "GBR"]
[SourceTitle "playchess.com"]
[Source "ChessBase"]
[SourceQuality "1"]
[TimeControl "5400+30"]

1. e4 {[%emt 0:00:00]} c5 {[%emt 0:00:00]} 2. Nc3 {[%emt 0:00:02]} d6 {[%emt 0:01:34]} 3. f4 {[%emt 0:00:39]} g6 {[%emt 0:00:11]} 4. Nf3 {[%emt 0:00:45]} Bg7 {[%emt 0:00:09]} 5. d4 {[%emt 0:01:17]} cxd4 {[%emt 0:00:27]} 6. Nxd4 {[%emt 0:00:13]} Nc6 {[%emt 0:00:25]} 7. Bb5 {[%emt 0:01:00]} Bd7 {[%emt 0:00:13]} 8. Be3 {[%emt 0:00:33]} Nf6 {[%emt 0:00:33]} 9. h3 {[%emt 0:04:12]} a6 {[%emt 0:00:53]} 10. Nxc6 {[%emt 0:08:33]} Bxc6 {[%emt 0:03:21]} 11. Bxc6+ {[%emt 0:00:39]} bxc6 {[%emt 0:00:06]} 12. O-O {[%emt 0:00:56]} O-O {[%emt 0:01:15]} 13. Qd3 {[%emt 0:04:18]} Rb8 {[%emt 0:06:51]} 14. b3 {[%emt 0:03:25]} Qa5 {[%emt 0:02:13]} 15. Rad1 {[%emt 0:01:56]} Nd5 {[%emt 0:27:30]} 16. Nxd5 {[%emt 0:06:51]} cxd5 {[%emt 0:00:11]} 17. exd5 {[%emt 0:00:26]} Qxa2 {[%emt 0:00:16]} 18. Qe4 {[%emt 0:01:38]} Rfc8 {[%emt 0:03:47]} 19. Rf2 {[%emt 0:00:49]} Rb7 {[%emt 0:02:26]} 20. f5 {[%emt 0:01:58]} Rf8 {[%emt 0:07:36]} 21. fxg6 {[%emt 0:03:46]} hxg6 {[%emt 0:02:12]} 22. Rdf1 {[%emt 0:01:03]} Qb2 {[%emt 0:01:47]} 23. Qg4 {[%emt 0:20:44]} Qe5 {[%emt 0:03:29]} 24. Qf3 {[%emt 0:05:11]} Rb5 {[%emt 0:05:47]} 25. Rd1 {[%emt 0:01:14]} Rb4 {[%emt 0:12:56]} 26. Bd2 {[%emt 0:06:44]} Rd4 {[%emt 0:00:27]} 27. c4 {[%emt 0:01:50]} Qe4 {[%emt 0:00:20]} 28. Qxe4 {[%emt 0:01:53]} Rxe4 {[%emt 0:00:05]} 29. Rf3 {[%emt 0:00:41]} Rd4 {[%emt 0:00:56]} 30. Kf2 {[%emt 0:00:59]} e6 {[%emt 0:03:10]} 31. dxe6 {[%emt 0:01:44]} fxe6 {[%emt 0:00:08]} 32. Rxf8+ {[%emt 0:00:38]} Kxf8 {[%emt 0:00:11]} 33. Ke3 {[%emt 0:01:29]} Ke7 {[%emt 0:00:58]} 34. Rf1 {[%emt 0:01:21]} e5 {[%emt 0:00:36]} 35. Bb4 {[%emt 0:01:59]} 1/2-1/2

[Event "1st 4NCL International U2050"]
[Site "Telford"]
[Date "2018.11.04"]
[Round "8"]
[White "Burgoyne, Peter A"]
[Black "De Coverly, Roger D"]
[Result "0-1"]
[ECO "C44"]
[WhiteElo "1665"]
[BlackElo "1946"]
[Annotator "NA"]
[PlyCount "94"]
[EventDate "2018.10.31"]
[EventType "swiss"]
[EventCountry "GBR"]
[SourceTitle "playchess.com"]
[Source "ChessBase"]
[SourceQuality "1"]
[TimeControl "5400+30"]

1. e4 {[%emt 0:00:00]} e5 {[%emt 0:02:16]} 2. Nf3 {[%emt 0:00:00]} Nc6 {[%emt 0:00:06]} 3. d4 {[%emt 0:00:00]} exd4 {[%emt 0:00:03]} 4. c3 {[%emt 0:00:11]} d5 {[%emt 0:00:04]} 5. exd5 {[%emt 0:00:12]} Qxd5 {[%emt 0:00:06]} 6. cxd4 {[%emt 0:00:06]} Bg4 {[%emt 0:00:34]} 7. Be2 {[%emt 0:00:08]} Bb4+ {[%emt 0:00:49]} 8. Nc3 {[%emt 0:00:16]} Bxf3 {[%emt 0:00:14]} 9. Bxf3 {[%emt 0:00:28]} Qc4 {[%emt 0:00:04]} 10. Bxc6+ {[%emt 0:01:34]} bxc6 {[%emt 0:00:05]} 11. Qe2+ {[%emt 0:00:11]} Qxe2+ {[%emt 0:00:06]} 12. Kxe2 {[%emt 0:00:04]} O-O-O {[%emt 0:00:55]} 13. Be3 {[%emt 0:00:25]} Ne7 {[%emt 0:00:54]} 14. Rac1 {[%emt 0:02:11]} Nf5 {[%emt 0:01:53]} 15. Rhd1 {[%emt 0:05:48]} Rhe8 {[%emt 0:00:55]} 16. Kf3 {[%emt 0:04:57]} Rd6 {[%emt 0:02:10]} 17. g3 {[%emt 0:04:20]} h6 {[%emt 0:04:40]} 18. d5 {[%emt 0:05:33]} Nxe3 {[%emt 0:03:47]} 19. fxe3 {[%emt 0:00:54]} Bxc3 {[%emt 0:00:13]} 20. Rxc3 {[%emt 0:00:47]} cxd5 {[%emt 0:00:19]} 21. Rd4 {[%emt 0:02:36]} Kd7 {[%emt 0:01:52]} 22. Ra3 {[%emt 0:02:34]} Rb8 {[%emt 0:01:57]} 23. b3 {[%emt 0:00:25]} a6 {[%emt 0:01:35]} 24. Rf4 {[%emt 0:03:09]} f6 {[%emt 0:01:46]} 25. Rd4 {[%emt 0:03:57]} c5 {[%emt 0:02:10]} 26. Rd2 {[%emt 0:03:42]} f5 {[%emt 0:03:16]} 27. h4 {[%emt 0:02:13]} Kc7 {[%emt 0:02:27]} 28. Ra4 {[%emt 0:01:13]} Re8 {[%emt 0:03:38]} 29. g4 {[%emt 0:04:56]} fxg4+ {[%emt 0:02:27]} 30. Rxg4 {[%emt 0:00:19]} g6 {[%emt 0:00:52]} 31. Rf4 {[%emt 0:01:23]} Re5 {[%emt 0:01:37]} 32. Rf7+ {[%emt 0:03:56]} Kc6 {[%emt 0:02:22]} 33. Rf4 {[%emt 0:02:26]} Re4 {[%emt 0:04:05]} 34. Rg2 {[%emt 0:02:49]} Rxf4+ {[%emt 0:02:54]} 35. Kxf4 {[%emt 0:00:17]} Re6 {[%emt 0:00:36]} 36. Kf3 {[%emt 0:02:11]} Kd6 {[%emt 0:01:22]} 37. Rg4 {[%emt 0:00:33]} Ke5 {[%emt 0:01:34]} 38. a3 {[%emt 0:01:10]} Rb6 {[%emt 0:02:53]} 39. Ra4 {[%emt 0:00:44]} Rxb3 {[%emt 0:01:20]} 40. Rxa6 {[%emt 0:00:12]} d4 {[%emt 0:01:22]} 41. Rxg6 {[%emt 0:00:15]} Rxe3+ {[%emt 0:00:24]} 42. Kf2 {[%emt 0:00:10]} c4 {[%emt 0:01:17]} 43. Rxh6 {[%emt 0:00:30]} c3 {[%emt 0:00:54]} 44. Rc6 {[%emt 0:00:31]} Ke4 {[%emt 0:01:22]} 45. h5 {[%emt 0:02:37]} Kd3 {[%emt 0:01:00]} 46. h6 {[%emt 0:00:16]} Rh3 {[%emt 0:00:46]} 47. Kg2 {[%emt 0:01:37]} Rh5 {[%emt 0:00:23]} 0-1

[Event "1st 4NCL International U2050"]
[Site "Telford"]
[Date "2018.11.04"]
[Round "8"]
[White "Murphy, Ross"]
[Black "Fallowfield, Nicholas"]
[Result "0-1"]
[ECO "D02"]
[WhiteElo "1646"]
[BlackElo "1883"]
[Annotator "NA"]
[PlyCount "62"]
[EventDate "2018.10.31"]
[EventType "swiss"]
[EventCountry "GBR"]
[SourceTitle "playchess.com"]
[Source "ChessBase"]
[SourceQuality "1"]
[TimeControl "5400+30"]

1. Nf3 {[%emt 0:00:00]} d5 {[%emt 0:00:00]} 2. g3 {[%emt 0:00:00]} Nc6 {[%emt 0:00:20]} 3. d4 {[%emt 0:00:00]} Bg4 {[%emt 0:00:27]} 4. Bg2 {[%emt 0:00:00]} Qd7 {[%emt 0:00:12]} 5. h3 {[%emt 0:00:32]} Bf5 {[%emt 0:00:13]} 6. c3 {[%emt 0:01:06]} f6 {[%emt 0:04:22]} 7. Nbd2 {[%emt 0:00:33]} e5 {[%emt 0:01:05]} 8. Nh4 {[%emt 0:01:43]} Be6 {[%emt 0:07:41]} 9. dxe5 {[%emt 0:01:11]} fxe5 {[%emt 0:01:58]} 10. Qb3 {[%emt 0:01:53]} Nf6 {[%emt 0:03:55]} 11. Qc2 {[%emt 0:00:59]} Bc5 {[%emt 0:03:13]} 12. Nb3 {[%emt 0:00:53]} Bb6 {[%emt 0:00:46]} 13. Bg5 {[%emt 0:01:52]} O-O {[%emt 0:04:02]} 14. O-O-O {[%emt 0:02:20]} Ne7 {[%emt 0:05:27]} 15. g4 {[%emt 0:01:25]} Bxf2 {[%emt 0:07:10]} 16. Rdf1 {[%emt 0:00:24]} Bb6 {[%emt 0:02:50]} 17. Nf5 {[%emt 0:01:33]} Bxf5 {[%emt 0:12:47]} 18. gxf5 {[%emt 0:00:11]} e4 {[%emt 0:00:30]} 19. h4 {[%emt 0:05:13]} Nxf5 {[%emt 0:04:32]} 20. Bh3 {[%emt 0:00:55]} Nh5 {[%emt 0:00:16]} 21. Nd4 {[%emt 0:03:53]} Bxd4 {[%emt 0:00:52]} 22. Bxf5 {[%emt 0:00:52]} Rxf5 {[%emt 0:00:11]} 23. cxd4 {[%emt 0:01:39]} Ng3 {[%emt 0:03:33]} 24. Rxf5 {[%emt 0:00:06]} Qxf5 {[%emt 0:00:27]} 25. Rd1 {[%emt 0:01:06]} h6 {[%emt 0:02:40]} 26. Be3 {[%emt 0:00:44]} Qg4 {[%emt 0:04:02]} 27. Re1 {[%emt 0:00:56]} Nf5 {[%emt 0:02:45]} 28. Qd2 {[%emt 0:00:40]} Qxh4 {[%emt 0:01:49]} 29. Bf4 {[%emt 0:00:33]} Nxd4 {[%emt 0:03:22]} 30. Rg1 {[%emt 0:00:41]} Nxe2+ {[%emt 0:03:09]} 31. Qxe2 {[%emt 0:03:06]} Qxf4+ {[%emt 0:00:05]} 0-1

[Event "1st 4NCL International U2050"]
[Site "Telford"]
[Date "2018.11.04"]
[Round "8"]
[White "Parry, Jacques"]
[Black "Potter, Steven"]
[Result "1-0"]
[ECO "B00"]
[WhiteElo "1625"]
[BlackElo "1770"]
[Annotator "NA"]
[PlyCount "106"]
[EventDate "2018.10.31"]
[EventType "swiss"]
[EventCountry "GBR"]
[SourceTitle "playchess.com"]
[Source "ChessBase"]
[SourceQuality "1"]
[TimeControl "5400+30"]

1. e4 {[%emt 0:00:00]} e6 {[%emt 0:00:00]} 2. d4 {[%emt 0:00:00]} b6 {[%emt 0:00:00]} 3. Nf3 {[%emt 0:00:19]} Bb7 {[%emt 0:00:00]} 4. Bd3 {[%emt 0:00:25]} c5 {[%emt 0:00:00]} 5. c3 {[%emt 0:00:33]} Nf6 {[%emt 0:00:00]} 6. Qe2 {[%emt 0:00:59]} Be7 {[%emt 0:00:14]} 7. O-O {[%emt 0:00:24]} Nc6 {[%emt 0:00:11]} 8. a3 {[%emt 0:01:08]} Na5 {[%emt 0:00:15]} 9. Nbd2 {[%emt 0:01:42]} c4 {[%emt 0:01:44]} 10. Bc2 {[%emt 0:01:30]} Qc7 {[%emt 0:00:49]} 11. Re1 {[%emt 0:03:28]} O-O {[%emt 0:00:23]} 12. Nf1 {[%emt 0:06:17]} b5 {[%emt 0:01:16]} 13. Ng3 {[%emt 0:05:18]} a6 {[%emt 0:00:46]} 14. e5 {[%emt 0:04:18]} Ne8 {[%emt 0:02:14]} 15. Be4 {[%emt 0:09:03]} Bxe4 {[%emt 0:03:49]} 16. Nxe4 {[%emt 0:02:50]} Nb3 {[%emt 0:00:59]} 17. Rb1 {[%emt 0:01:54]} Nxc1 {[%emt 0:00:19]} 18. Rbxc1 {[%emt 0:00:10]} Qd8 {[%emt 0:01:42]} 19. Rcd1 {[%emt 0:03:05]} d5 {[%emt 0:03:11]} 20. Ng3 {[%emt 0:01:03]} a5 {[%emt 0:02:32]} 21. Nd2 {[%emt 0:05:56]} b4 {[%emt 0:01:37]} 22. axb4 {[%emt 0:00:12]} axb4 {[%emt 0:00:10]} 23. f4 {[%emt 0:01:40]} bxc3 {[%emt 0:00:40]} 24. bxc3 {[%emt 0:00:16]} Ra2 {[%emt 0:01:08]} 25. Ra1 {[%emt 0:05:19]} Qa5 {[%emt 0:01:07]} 26. Nxc4 {[%emt 0:05:24]} Rxe2 {[%emt 0:02:55]} 27. Nxa5 {[%emt 0:00:34]} Rxe1+ {[%emt 0:00:23]} 28. Rxe1 {[%emt 0:00:12]} Bh4 {[%emt 0:00:14]} 29. Re3 {[%emt 0:02:37]} Bxg3 {[%emt 0:01:36]} 30. Rxg3 {[%emt 0:00:23]} Nc7 {[%emt 0:00:44]} 31. c4 {[%emt 0:04:25]} dxc4 {[%emt 0:05:24]} 32. Nxc4 {[%emt 0:00:28]} f5 {[%emt 0:00:28]} 33. Rd3 {[%emt 0:01:48]} Ra8 {[%emt 0:02:09]} 34. g3 {[%emt 0:02:26]} h6 {[%emt 0:01:22]} 35. Ne3 {[%emt 0:03:21]} Ra5 {[%emt 0:01:46]} 36. d5 {[%emt 0:03:27]} exd5 {[%emt 0:06:41]} 37. Nxf5 {[%emt 0:00:12]} Kf7 {[%emt 0:00:23]} 38. Nd4 {[%emt 0:01:22]} g6 {[%emt 0:01:41]} 39. g4 {[%emt 0:02:18]} Ra4 {[%emt 0:04:33]} 40. f5 {[%emt 0:01:09]} h5 {[%emt 0:03:44]} 41. fxg6+ {[%emt 0:03:27]} Kxg6 {[%emt 0:00:29]} 42. gxh5+ {[%emt 0:00:10]} Kxh5 {[%emt 0:00:17]} 43. e6 {[%emt 0:01:02]} Kg6 {[%emt 0:01:09]} 44. Rg3+ {[%emt 0:04:10]} Kf6 {[%emt 0:00:37]} 45. Rf3+ {[%emt 0:02:05]} Ke5 {[%emt 0:02:43]} 46. Ne2 {[%emt 0:03:54]} Nxe6 {[%emt 0:03:46]} 47. Kf2 {[%emt 0:01:56]} d4 {[%emt 0:02:29]} 48. Nxd4 {[%emt 0:02:20]} Nxd4 {[%emt 0:02:13]} 49. Rf7 {[%emt 0:00:36]} Nf5 {[%emt 0:00:48]} 50. Rh7 {[%emt 0:01:10]} Ke4 {[%emt 0:00:19]} 51. h4 {[%emt 0:00:31]} Ra2+ {[%emt 0:00:13]} 52. Kg1 {[%emt 0:01:18]} Kf3 {[%emt 0:01:33]} 53. Rc7 {[%emt 0:02:04]} Rg2+ {[%emt 0:02:23]} 1-0

[Event "1st 4NCL International U2050"]
[Site "Telford"]
[Date "2018.11.04"]
[Round "8"]
[White "Aubury, Benjamin"]
[Black "Truman, Richard G"]
[Result "1/2-1/2"]
[ECO "E00"]
[WhiteElo "1566"]
[BlackElo "1902"]
[Annotator "NA"]
[PlyCount "31"]
[EventDate "2018.10.31"]
[EventType "swiss"]
[EventCountry "GBR"]
[SourceTitle "playchess.com"]
[Source "ChessBase"]
[SourceQuality "1"]
[TimeControl "5400+30"]

1. d4 {[%emt 0:00:00]} Nf6 {[%emt 0:00:00]} 2. c4 {[%emt 0:00:00]} e6 {[%emt 0:00:00]} 3. g3 {[%emt 0:00:00]} Bb4+ {[%emt 0:02:25]} 4. Nd2 {[%emt 0:01:48]} Nc6 {[%emt 0:16:00]} 5. a3 {[%emt 0:02:10]} Be7 {[%emt 0:01:25]} 6. Ngf3 {[%emt 0:00:14]} d5 {[%emt 0:00:39]} 7. Bg2 {[%emt 0:01:35]} O-O {[%emt 0:00:42]} 8. O-O {[%emt 0:01:00]} b6 {[%emt 0:08:29]} 9. Qa4 {[%emt 0:06:03]} Qd7 {[%emt 0:05:13]} 10. cxd5 {[%emt 0:01:23]} exd5 {[%emt 0:00:14]} 11. Qc2 {[%emt 0:02:25]} Bb7 {[%emt 0:08:54]} 12. b4 {[%emt 0:03:08]} Rae8 {[%emt 0:04:10]} 13. Nb3 {[%emt 0:04:19]} Bd6 {[%emt 0:01:30]} 14. Bf4 {[%emt 0:04:24]} Ne4 {[%emt 0:09:18]} 15. Bxd6 {[%emt 0:05:05]} Nxd6 {[%emt 0:00:14]} 16. e3 {[%emt 0:02:21]} 1/2-1/2

[Event "1st 4NCL International U2050"]
[Site "Telford"]
[Date "2018.11.04"]
[Round "9"]
[White "Truman, Richard G"]
[Black "Bryant, Richard B E"]
[Result "0-1"]
[ECO "C06"]
[WhiteElo "1902"]
[BlackElo "1854"]
[Annotator "NA RC"]
[PlyCount "48"]
[EventDate "2018.10.31"]
[EventType "swiss"]
[EventCountry "GBR"]
[SourceTitle "playchess.com"]
[Source "ChessBase"]
[SourceQuality "1"]
[TimeControl "5400+30"]

{[%evp 10,48,25,35,32767,32767,32767,32767,32767,32767,32767,32767,32767,32767,44,40,40,32767,11,-1,46,41,32767,32767,32767,32767,20,29,66,-128,-147,-154,32767,32767,32767,32767,32767,32767,-348,-338,-310]} 1. d4 {[%emt 0:00:00]} e6 {[%emt 0:00:00]} 2. e4 {[%emt 0:01:58]} d5 {[%emt 0:00:00]} 3. Nd2 {[%emt 0:00:04]} Nf6 {[%emt 0:00:00]} 4. e5 {[%emt 0:00:07]} Nfd7 {[%emt 0:00:00]} 5. Bd3 {[%emt 0:00:06]} c5 {[%emt 0:00:04]} 6. c3 {[%emt 0:00:04]} Nc6 {[%emt 0:00:04]} 7. Ne2 {[%emt 0:00:09]} cxd4 {[%emt 0:00:08]} 8. cxd4 {[%emt 0:00:06]} f6 {[%emt 0:00:07]} 9. exf6 {[%emt 0:00:28]} Nxf6 {[%emt 0:00:06]} 10. Nf3 {[%emt 0:00:11]} Bd6 {[%emt 0:00:35]} 11. Bf4 {[%emt 0:01:44]} Bb4+ {[%emt 0:01:01] LiveBook: 3 Games C06: French Tarrasch: 3...Nf6 4 e5 Nfd7 5 Bd3 main lines} (11... Qa5+ 12. Qd2 Qxd2+ 13. Kxd2 Bxf4+ 14. Nxf4 O-O 15. Ne2 Ng4 16. Rhf1 e5 17. dxe5 Ngxe5 18. Nxe5 Nxe5 19. Rac1 Bd7 {½-½ (45) Bocharov,I (2565)-Volkov,S (2547) Cheliabinsk 2018}) 12. Nc3 {[%emt 0:11:48]} O-O {[%emt 0:01:31]} 13. Qc2 {[%emt 0:25:42]} Bd7 $146 {[%emt 0:06:32]} ({Predecessor:} 13... h6 14. O-O Nh5 15. Bg3 Nf4 16. Rad1 Bd6 17. a3 Qf6 18. Bxf4 Bxf4 19. Ne2 {½-½ (42) Ochsner,T-Rasmussen,K Haderslev 1981}) 14. O-O {[%emt 0:00:19]} a6 {[%emt 0:01:19]} ({Better is} 14... Nh5 $11 15. Be3 (15. Bxh7+ Kh8 $14) 15... Nf6) 15. a3 {[%emt 0:10:36]} Be7 {[%emt 0:04:49]} 16. Rfe1 {[%emt 0:01:21]} Rc8 {[%emt 0:01:31]} 17. Qd2 {[%emt 0:05:32]} Na5 {[%emt 0:02:54]} 18. Rad1 {[%emt 0:01:58]} Qb6 {[%emt 0:01:39]} 19. Bb1 $2 {[%emt 0:06:17]} (19. Ne5 $16 {und es läuft.} Bd6 20. Nxd7 Nxd7 21. Nxd5 exd5 22. Bxd6 Qxd6 23. Qxa5) 19... Nc4 $1 {[%emt 0:01:41]} 20. Qc2 {[%emt 0:03:07]} Qxb2 {[%emt 0:00:54]} 21. Qxb2 {[%emt 0:01:02]} Nxb2 {[%emt 0:00:09]} 22. Rc1 {[%emt 0:00:07]} Bxa3 {[%emt 0:00:42]} 23. Ne5 {[%emt 0:00:31]} Bb4 {[%emt 0:05:03]} 24. Re3 {[%emt 0:00:27]} Na4 $19 {[%emt 0:04:34]} 0-1

[Event "1st 4NCL International U2050"]
[Site "Telford"]
[Date "2018.11.04"]
[Round "9"]
[White "Ansari, Athar"]
[Black "Gostelow, David W"]
[Result "1-0"]
[ECO "C00"]
[WhiteElo "1898"]
[BlackElo "1892"]
[Annotator "NA RC"]
[PlyCount "47"]
[EventDate "2018.10.31"]
[EventType "swiss"]
[EventCountry "GBR"]
[SourceTitle "playchess.com"]
[Source "ChessBase"]
[SourceQuality "1"]
[TimeControl "5400+30"]

{[%evp 8,43,2,-5,-2,0,0,5,6,0,41,32767,32767,48,48,44,83,76,338,32767,32767,32767,32767,32767,32767,32767,433,449,32767,665,822,766,983,1148,1031,1139,1625,2025]} 1. e4 {[%emt 0:00:00]} c5 {[%emt 0:00:00]} 2. c3 {[%emt 0:00:00]} d5 {[%emt 0:00:00]} 3. e5 {[%emt 0:00:31]} Nc6 {[%emt 0:01:22]} 4. f4 {[%emt 0:00:16]} e6 {[%emt 0:08:06]} 5. Nf3 {[%emt 0:01:09]} Nge7 {[%emt 0:08:46] LiveBook: 37 Games} 6. Be2 {[%emt 0:02:47]} Nf5 {[%emt 0:02:36] C00: French: Unusual White 2nd moves} 7. O-O {[%emt 0:01:38]} Be7 {[%emt 0:04:04]} (7... h5 8. Na3 c4 9. g3 b5 10. Nc2 d4 11. d3 Bc5 12. Kg2 cxd3 13. Qxd3 dxc3 14. Qxd8+ Kxd8 15. bxc3 {1-0 (35) Beikert,G (2449)-Machelett,H (2430) Germany 2007}) 8. Na3 {[%emt 0:01:53]} c4 $146 {[%emt 0:06:34]} ({Predecessor:} 8... Bd7 9. g3 f6 10. g4 Nh6 11. exf6 gxf6 {0-1 (35) Kubasky,A (2315)-Haraldsson,H (2348) ICCF email 2003}) 9. Nc2 {[%emt 0:01:54]} O-O {[%emt 0:04:49]} 10. d3 {[%emt 0:02:34]} cxd3 {[%emt 0:06:13]} 11. Bxd3 {[%emt 0:01:38]} Bc5+ {[%emt 0:00:00]} 12. Kh1 {[%emt 0:00:13]} Nfe7 $2 {[%emt 0:01:30]} (12... g6 $16 {is a better defense.}) 13. b4 {[%emt 0:01:40]} Bb6 {[%emt 0:00:19]} 14. Bxh7+ {[%emt 0:02:39]} Kh8 {[%emt 0:04:18]} 15. Bd3 {[%emt 0:00:47]} g6 {[%emt 0:01:11]} 16. Qe1 {[%emt 0:00:39]} Kg7 {[%emt 0:05:49] [#]} 17. f5 $1 {[%emt 0:00:39]} Nxf5 {[%emt 0:03:18]} 18. Bg5 {[%emt 0:00:53]} f6 {[%emt 0:05:40]} 19. exf6+ {[%emt 0:00:43]} Kf7 {[%emt 0:00:51]} 20. b5 {[%emt 0:00:31]} Bc7 {[%emt 0:01:58]} 21. bxc6 {[%emt 0:00:28]} Qd6 {[%emt 0:00:12]} 22. Bxf5 $18 {[%emt 0:01:59]} gxf5 {[%emt 0:00:12]} 23. Qh4 {[%emt 0:00:37]} bxc6 {[%emt 0:01:46]} 24. Qh5+ {[%emt 0:00:11]} 1-0

[Event "1st 4NCL International U2050"]
[Site "Telford"]
[Date "2018.11.04"]
[Round "9"]
[White "Fallowfield, Nicholas"]
[Black "Wynarczyk, Raymond"]
[Result "1/2-1/2"]
[ECO "E08"]
[WhiteElo "1883"]
[BlackElo "1908"]
[Annotator "NA"]
[PlyCount "32"]
[EventDate "2018.10.31"]
[EventType "swiss"]
[EventCountry "GBR"]
[SourceTitle "playchess.com"]
[Source "ChessBase"]
[SourceQuality "1"]
[TimeControl "5400+30"]

{[%evp 9,31,-21,31,22,32767,14,42,-5,0,0,-8,-10,-2,-26,32767,32767,32767,32767,32767,-51,-2,-43,0,0]} 1. Nf3 {[%emt 0:00:00]} d5 {[%emt 0:00:00]} 2. c4 {[%emt 0:00:00]} e6 {[%emt 0:00:06]} 3. g3 {[%emt 0:00:00]} Nf6 {[%emt 0:00:17]} 4. Bg2 {[%emt 0:00:00]} a6 {[%emt 0:01:56]} 5. O-O {[%emt 0:07:55]} Be7 {[%emt 0:03:00]} 6. d4 {[%emt 0:00:00]} O-O {[%emt 0:01:12]} 7. Qc2 {[%emt 0:01:19] LiveBook: 16 Games} Nbd7 {[%emt 0:04:06]} 8. cxd5 {[%emt 0:05:33] E08: Katalanisch} exd5 {[%emt 0:00:37]} 9. Nc3 {[%emt 0:03:01]} c6 {[%emt 0:01:55]} 10. Bg5 {[%emt 0:04:35]} Re8 {[%emt 0:02:30]} 11. e3 {[%emt 0:01:08]} h6 {[%emt 0:02:10]} 12. Bxf6 {[%emt 0:00:12]} Bxf6 $146 {[%emt 0:01:19]} ({Vorgänger:} 12... Nxf6 13. Ne5 Ng4 14. Nd3 {0-1 (23) Kristiansen,J (2415)-Vaganian,R (2595) Esbjerg 1988}) 13. b4 {[%emt 0:00:37]} Nb6 {[%emt 0:01:35]} 14. a4 {[%emt 0:05:30]} Bg4 {[%emt 0:02:02]} 15. a5 {[%emt 0:00:58]} Bxf3 {[%emt 0:04:02]} 16. Bxf3 $11 {[%emt 0:00:09]} Nc4 {[%emt 0:00:32]} 1/2-1/2

[Event "1st 4NCL International U2050"]
[Site "Telford"]
[Date "2018.11.04"]
[Round "9"]
[White "Zdanowski, Adrian"]
[Black "Somton, Anita"]
[Result "1/2-1/2"]
[ECO "E07"]
[WhiteElo "1845"]
[BlackElo "1795"]
[Annotator "NA"]
[PlyCount "34"]
[EventDate "2018.10.31"]
[EventType "swiss"]
[EventCountry "GBR"]
[SourceTitle "playchess.com"]
[Source "ChessBase"]
[SourceQuality "1"]
[TimeControl "5400+30"]

{[%evp 14,29,-18,32767,-14,-20,32767,-22,-21,-41,-20,-22,-23,-40,-37,-39,-25,-50]} 1. Nf3 {[%emt 0:00:00]} d5 {[%emt 0:00:00]} 2. c4 {[%emt 0:00:08]} e6 {[%emt 0:00:09]} 3. d4 {[%emt 0:00:38]} Nf6 {[%emt 0:00:13]} 4. Nc3 {[%emt 0:00:28]} Be7 {[%emt 0:00:28]} 5. cxd5 {[%emt 0:00:44]} exd5 {[%emt 0:00:23]} 6. g3 {[%emt 0:00:13]} Nbd7 {[%emt 0:01:01]} 7. Bg2 {[%emt 0:01:34]} O-O {[%emt 0:02:02]} 8. O-O {[%emt 0:00:08]} c6 {[%emt 0:00:48]} 9. Bg5 {[%emt 0:03:22] LiveBook: 6 Games} Re8 {[%emt 0:02:22]} 10. Rc1 {[%emt 0:02:31]} Nf8 {[%emt 0:02:06]} 11. e3 {[%emt 0:01:54]} h6 {[%emt 0:01:52]} 12. Bxf6 {[%emt 0:00:09]} Bxf6 {[%emt 0:00:09]} 13. Qd2 {[%emt 0:00:15]} Bf5 {[%emt 0:01:29]} 14. b4 {[%emt 0:00:59]} a6 {[%emt 0:03:24]} 15. Ne1 $15 {[%emt 0:08:04]} Ng6 {[%emt 0:04:15]} 16. Nd3 {[%emt 0:00:46]} Qe7 {[%emt 0:01:17]} 17. a3 {[%emt 0:02:17]} a5 {[%emt 0:01:48]} 1/2-1/2